fUSD/lending_fUSD_20240319
["ID","MTS","AMOUNT","RATE_DAILY","PERIOD"]
[319505244,1710809432686,-177.88,0.00023124,2]
[319505245,1710809432697,-555.118,0.00023224,2]
[319505246,1710809432706,-7076.7572362,0.00023224,2]
[319505247,1710809432715,-223.73529118,0.00024,2]
[319505248,1710809432724,-270.73,0.0002411,2]
[319505249,1710809432733,-760.0,0.00024574,2]
[319505251,1710809432743,-240.0,0.00024909,2]
[319505254,1710809432752,-461.47135606,0.00025401,2]
[319505257,1710809432760,-2894.0,0.000258,3]
[319505260,1710809432770,-270.73,0.00026374,2]
[319505261,1710809432779,-5765.0,0.000267,2]
[319505263,1710809432788,-159.73,0.00026917,2]
[319505265,1710809432797,-161.18,0.00027055,10]
[319505267,1710809432806,-760.0,0.00027304,2]
[319505270,1710809432815,-300.0,0.0002788,5]
[319505271,1710809432824,-178.29,0.0002788,2]
[319505273,1710809432834,-1000.0,0.00027945,2]
[319505275,1710809432843,-240.0,0.00028022,2]
[319505277,1710809432853,-178.29,0.00028428,2]
[319505279,1710809432862,-152.72126,0.0002859,2]
[319505281,1710809432877,-4137.7156,0.00028625,3]
[319505282,1710809432886,-270.73,0.00028638,2]
[319505283,1710809432896,-604.5552896,0.0002868,2]
[319505284,1710809432905,-604.5552896,0.0002868,2]
[319505285,1710809432914,-604.5552896,0.0002868,2]
[319505286,1710809432923,-160.52108406,0.0002868,2]
[319505287,1710809432933,-160.52108402,0.0002868,2]
[319505288,1710809432943,-415.81850144,0.00028779,2]
[319505289,1710809432954,-32110.8956,0.0002878,2]
[319505290,1710809432965,-500.0,0.0002878,2]
[319505291,1710809432975,-178.68771224,0.0002878,2]
[319505292,1710809432985,-66688.3006,0.0002878,2]
[319505293,1710809432995,-7512.27676221,0.0002878,2]
[319505294,1710809433005,-185.38153136,0.0002878,2]
[319505295,1710809433014,-151.15077774,0.0002878,2]
[319505296,1710809433025,-7500.0,0.0002878,2]
[319505297,1710809433035,-316.93480938,0.0002878,2]
[319505298,1710809433044,-176.2350469,0.0002879,2]
[319505299,1710809433054,-998.7,0.000288,2]
[319505300,1710809433063,-156.01520204,0.0002887,2]
[319505301,1710809433072,-340.65943347,0.00028879,2]
[319505302,1710809433082,-231.37883763,0.00028879,2]
[319505303,1710809433091,-155.0,0.00028879,2]
[319505304,1710809433100,-500.0,0.00028879,2]
[319505305,1710809433109,-500.0,0.00028879,2]
[319505306,1710809433123,-199.66191154,0.00028879,2]
[319505307,1710809433132,-500.0,0.00028879,2]
[319505308,1710809433141,-327.8491523,0.00028879,2]
[319505309,1710809433151,-438.07710047,0.00028879,2]
[319505310,1710809433160,-714625.82175043,0.0002888,2]
[319505311,1710809433173,-130985.76701987,0.0002888,2]
[319505312,1710809433232,-16023.84977539,0.0002888,2]
[319505313,1710809433248,-750.0,0.0002888,2]
[319505314,1710809433276,-268.74052977,0.0002888,2]
[319505324,1710809438224,-382.32050424,0.0002878,2]
[319505325,1710809438243,-6062.9094044,0.0002878,2]
[319505326,1710809438259,-484.5265281,0.0002878,2]
[319505327,1710809438344,-375.61444,0.0002878,2]
[319505328,1710809438355,-194.62912326,0.0002878,2]
[319505329,1710809438365,-78.37087674,0.0002888,2]
[319505330,1710809438381,-679.29862,0.0002888,2]
[319505331,1710809438395,-2103.04628302,0.0002888,2]
[319505332,1710809438417,-925.30673529,0.0002888,2]
[319505333,1710809438431,-504.2518509,0.0002888,2]
[319505334,1710809438495,-1013.27591,0.0002888,2]
[319505335,1710809438568,-558.64119013,0.0002888,2]
[319505346,1710809440250,-2091.5394656,0.0002888,2]
[319505347,1710809440337,-499.69436571,0.0002888,2]
[319505348,1710809440349,-699.74385355,0.0002888,2]
[319505349,1710809440361,-956.59263826,0.0002888,2]
[319505350,1710809440385,-5114.10009646,0.0002888,2]
[319505351,1710809440398,-13492.24366207,0.0002888,2]
[319505352,1710809440450,-1404.33864976,0.0002888,2]
[319505353,1710809440462,-521.81754638,0.0002888,2]
[319505354,1710809440474,-346.43207778,0.0002888,2]
[319505355,1710809440527,-1736.41306025,0.0002888,2]
[319505356,1710809440575,-530.26989874,0.0002888,2]
[319505357,1710809440587,-3304.41424944,0.0002888,2]
[319505358,1710809440600,-6320.83521,0.0002888,2]
[319505359,1710809440612,-31574.29906351,0.0002888,2]
[319505360,1710809440669,-1641.57423807,0.0002888,2]
[319505361,1710809440680,-512.54456058,0.0002888,2]
[319505364,1710809443248,-300.175,0.0002788,2]
[319505368,1710809443459,-55.995,0.0002788,2]
[319505369,1710809443469,-81.25006352,0.0002888,2]
[319505370,1710809443482,-796.75772232,0.0002888,2]
[319505371,1710809443493,-35632.49612137,0.0002888,2]
[319505372,1710809443514,-551.11664896,0.0002888,2]
[319505373,1710809443547,-6033.45242956,0.0002888,2]
[319505374,1710809443558,-33113.24,0.0002888,2]
[319505375,1710809443570,-944.3599996,0.0002888,2]
[319505376,1710809443590,-1779.24706676,0.0002888,2]
[319505377,1710809443614,-1030.18146209,0.0002888,2]
[319505380,1710809446221,-0.11706135,0.00024,2]
[319505381,1710809446233,-223.61822983,0.00024,2]
[319505382,1710809446242,-205.20911928,0.00028879,2]
[319505383,1710809446252,-1389.63163792,0.00028879,2]
[319505384,1710809446288,-11506.2770372,0.00028879,2]
[319505385,1710809446299,-934.51654593,0.00028879,2]
[319505386,1710809446323,-21167.60032262,0.00028879,2]
[319505387,1710809446333,-4791.63503147,0.00028879,5]
[319505388,1710809446343,-144951.19119601,0.0002888,2]
[319505389,1710809446354,-198446.8998096,0.0002888,2]
[319505390,1710809446394,-3778.75230152,0.0002888,2]
[319505391,1710809446407,-1043.06862368,0.0002888,2]
[319505392,1710809446473,-264.96943563,0.0002888,2]
[319505393,1710809446486,-842.0,0.0002888,2]
[319505394,1710809447447,-42988.07510767,0.0002888,2]
[319505395,1710809472658,372.8676501,0.0001,2]
[319505396,1710809481756,395.69021646,9e-05,2]
[319505402,1710809633513,-4745.03803475,0.0001305,2]
[319505403,1710809633563,-163.3317181,0.00013896,2]
[319505404,1710809633604,-155.0,0.00013896,2]
[319505405,1710809633646,-26536.68345349,0.00013897,2]
[319505406,1710809633688,-403.46642306,0.00013997,2]
[319505407,1710809633725,-155.0,0.00013998,2]
[319505408,1710809633763,-155.0,0.00013998,2]
[319505409,1710809633804,-1943.41560032,0.00013999,2]
[319505410,1710809633843,-14489.68935739,0.00013999,2]
[319505411,1710809633882,-33329.37541289,0.00014,2]
[319505419,1710809703707,-464.83744717,0.000135,2]
[319505420,1710809703730,-155.0,0.00013998,2]
[319505421,1710809703755,-163.28832238,0.00013998,2]
[319505422,1710809703778,-150.0,0.00013999,2]
[319505423,1710809703802,-150.0,0.00013999,2]
[319505424,1710809703826,-150.0,0.00013999,2]
[319505425,1710809703852,-20766.87423045,0.00014,2]
[319505427,1710809761753,-267.9396594,0.00013999,2]
[319505428,1710809761780,-5732.0603406,0.00014,2]
[319505429,1710809824045,150.0,0.00010499,2]
[319505430,1710809824066,150.0,0.00010499,2]
[319505431,1710809824087,150.0,0.00010499,2]
[319505432,1710809824107,150.0,0.00010499,2]
[319505434,1710809899613,-451.21497687,0.00013295,2]
[319505435,1710809899638,-249.76866871,0.00013295,2]
[319505436,1710809899661,-234.97817585,0.00013296,2]
[319505437,1710809899683,-175.71894332,0.00013298,2]
[319505438,1710809899711,-4376.12180604,0.00013859,2]
[319505439,1710809899757,-666.754628,0.0001386,2]
[319505440,1710809899801,-332.07895703,0.0001393,2]
[319505441,1710809899842,-155.0,0.00013998,2]
[319505442,1710809899884,-300.0,0.00013998,2]
[319505443,1710809899922,-150.0,0.00013998,2]
[319505444,1710809899960,-300.0,0.00013998,2]
[319505445,1710809899995,-658.74639374,0.00013998,2]
[319505446,1710809900030,-204.82775189,0.00013998,2]
[319505447,1710809900072,-155.0,0.00013998,2]
[319505448,1710809900110,-155.0,0.00013998,2]
[319505449,1710809900145,-259.00594111,0.00013999,2]
[319505450,1710809900181,-294.43492119,0.00013999,2]
[319505451,1710809900217,-164.94740714,0.00013999,2]
[319505452,1710809900251,-155.0,0.00013999,2]
[319505453,1710809900301,-971.42316563,0.00013999,2]
[319505454,1710809900349,-155.0,0.00013999,2]
[319505455,1710809900389,-484.09114728,0.00013999,2]
[319505456,1710809900428,-231.44787666,0.00013999,2]
[319505457,1710809900467,-155.0,0.00013999,2]
[319505458,1710809900507,-235.98479686,0.00013999,2]
[319505459,1710809900554,-155.0,0.00013999,2]
[319505460,1710809900596,-155.0,0.00013999,2]
[319505461,1710809900639,-204.50248264,0.00013999,2]
[319505462,1710809900680,-373.8809731,0.00013999,2]
[319505463,1710809900730,-193.51657861,0.00013999,2]
[319505464,1710809900778,-364.14722839,0.00013999,2]
[319505465,1710809900822,-2129.5189323,0.00013999,2]
[319505466,1710809900863,-499.99,0.00013999,2]
[319505467,1710809900904,-160311.7943497,0.00014,2]
[319505468,1710809900942,-23941.10389794,0.00014,2]
[319505469,1710810005882,-155.0,0.00013294,2]
[319505470,1710810005908,-150.0,0.00013997,2]
[319505471,1710810005933,-451.51606412,0.00013998,2]
[319505472,1710810005958,-234.84352069,0.00013998,2]
[319505473,1710810005984,-3238.0,0.00013998,2]
[319505474,1710810006009,-4016.89018788,0.00013999,2]
[319505475,1710810006037,-249.69624654,0.00013999,2]
[319505476,1710810006063,-12704.05398077,0.00014,2]
[319505477,1710810040135,4791.63503147,0.00013998,5]
[319505479,1710810241086,-334.39126349,0.00012498,2]
[319505480,1710810241110,-156.78176363,0.00012498,2]
[319505481,1710810241133,-1616.62187975,0.00012598,2]
[319505482,1710810241156,-175.16192007,0.00012598,2]
[319505483,1710810241179,-505.80995178,0.00013997,2]
[319505484,1710810241202,-155.0,0.00013997,2]
[319505485,1710810241229,-2939.65368621,0.00013998,2]
[319505486,1710810241253,-150.0,0.00013998,2]
[319505487,1710810241277,-21167.60032262,0.00013999,2]
[319505488,1710810241299,-1121.39755461,0.00014,2]
[319505489,1710810241322,-7460.7875685,0.00014,2]
[319505490,1710810241344,-4216.79408934,0.00014,2]
[319505491,1710810342277,-165.85,0.00014352,2]
[319505493,1710810342301,-2567.75706254,0.00015,2]
[319505494,1710810430093,-3124.12755567,0.00015,2]
[319505508,1710810632617,-155.0,0.00013895,2]
[319505509,1710810632626,-1095.0,0.00013896,2]
[319505510,1710810632637,-1061.33799988,0.00013896,2]
[319505511,1710810632648,-657.25,0.00013896,2]
[319505512,1710810632922,-248.04396021,0.00013896,2]
[319505513,1710810632940,-155.0,0.00013897,2]
[319505514,1710810632950,-639.84792093,0.00013897,2]
[319505515,1710810632960,-360.57329219,0.00013898,2]
[319505516,1710810632969,-1106.5067449,0.00013899,2]
[319505517,1710810632979,-500.0,0.00014,2]
[319505519,1710810632988,-500.0,0.00014,2]
[319505521,1710810632997,-991.0,0.00014,2]
[319505523,1710810633008,-300.0,0.00014999,2]
[319505525,1710810633023,-150.0,0.00014999,2]
[319505527,1710810633033,-4523.31268845,0.00015,2]
[319505530,1710810633043,-366.87,0.00015949,2]
[319505531,1710810633052,-232.19537326,0.00016,2]
[319505533,1710810633061,-540.0,0.00016499,2]
[319505535,1710810633071,-210.0,0.00016499,2]
[319505537,1710810633081,-249.69624654,0.00017763,2]
[319505541,1710810633092,-1843.36,0.00017859,2]
[319505544,1710810633101,-150.0,0.00017889,2]
[319505546,1710810633110,-458.97,0.00017903,2]
[319505548,1710810633120,-191.03,0.00017904,2]
[319505550,1710810633130,-784.59,0.00017911,2]
[319505553,1710810633139,-499.99,0.00017911,2]
[319505555,1710810633149,-394.74,0.00017919,2]
[319505557,1710810633159,-150.99,0.00017919,2]
[319505558,1710810633169,-1592.07,0.0001792,2]
[319505561,1710810633179,-200.0,0.00017926,2]
[319505563,1710810633189,-1019.44,0.00017926,2]
[319505565,1710810633199,-177.0,0.00017928,2]
[319505566,1710810633210,-200.0,0.00017928,2]
[319505568,1710810633221,-264.09,0.00017938,2]
[319505571,1710810633231,-409.09,0.00017941,2]
[319505572,1710810633241,-304.0,0.00017941,2]
[319505573,1710810633252,-235.98479686,0.00017943,2]
[319505574,1710810633267,-155.0,0.00017943,2]
[319505575,1710810633278,-232.87,0.00017943,2]
[319505576,1710810633287,-500.0,0.00017943,2]
[319505577,1710810633297,-721.53,0.00017943,2]
[319505578,1710810633306,-500.0,0.00017945,2]
[319505579,1710810633316,-23900.0,0.00017945,2]
[319505580,1710810633325,-3112.54,0.00017948,2]
[319505581,1710810633335,-5000.0,0.00017959,2]
[319505582,1710810633345,-1445.94,0.00017974,2]
[319505583,1710810633355,-171.24,0.00017977,2]
[319505584,1710810633364,-2000.0,0.00017993,2]
[319505585,1710810633374,-250.0,0.0001801,2]
[319505586,1710810633383,-250.0,0.0001801,2]
[319505587,1710810633393,-290.89652637,0.00018018,2]
[319505588,1710810633403,-2751.0,0.00018024,2]
[319505589,1710810633413,-771.94,0.00018026,2]
[319505590,1710810633422,-295.43,0.00018107,2]
[319505591,1710810633432,-150.0,0.00018149,2]
[319505592,1710810633441,-295.43,0.00018157,2]
[319505593,1710810633450,-295.43,0.00018207,2]
[319505594,1710810633460,-366.87,0.00018213,2]
[319505595,1710810633471,-295.43,0.00018256,2]
[319505596,1710810633481,-7619.51542806,0.00018269,2]
[319505597,1710810633490,-295.43,0.00018306,2]
[319505598,1710810633499,-295.43,0.00018356,2]
[319505599,1710810633508,-295.43,0.00018405,2]
[319505600,1710810633527,-295.43,0.00018455,2]
[319505601,1710810633537,-174.78,0.00018473,2]
[319505602,1710810633546,-295.43,0.00018505,2]
[319505603,1710810633555,-295.43,0.00018554,2]
[319505604,1710810633565,-295.43,0.00018604,2]
[319505605,1710810633574,-295.43,0.00018654,2]
[319505606,1710810633584,-295.43,0.00018703,2]
[319505607,1710810633593,-295.43,0.00018753,2]
[319505608,1710810633604,-295.43,0.00018803,2]
[319505609,1710810633614,-295.43,0.00018852,2]
[319505610,1710810633624,-150.71,0.00018866,2]
[319505611,1710810633634,-295.43,0.00018902,2]
[319505612,1710810633642,-295.43,0.00018952,2]
[319505613,1710810633652,-150.71,0.00018998,2]
[319505614,1710810633662,-295.43,0.00019001,2]
[319505615,1710810633671,-295.43,0.00019051,2]
[319505616,1710810633681,-150.71,0.0001913,2]
[319505617,1710810633691,-150.71,0.00019262,2]
[319505618,1710810633700,-150.71,0.00019394,2]
[319505619,1710810633710,-150.71,0.00019526,2]
[319505620,1710810633722,-150.71,0.00019658,2]
[319505621,1710810633732,-184.91,0.00019726,2]
[319505622,1710810633742,-153.94,0.00019751,2]
[319505623,1710810633751,-150.71,0.0001979,2]
[319505624,1710810633769,-150.71,0.00019922,2]
[319505625,1710810633779,-331.96395506,0.0002,7]
[319505626,1710810633789,-177.48,0.0002,2]
[319505627,1710810633798,-150.71,0.00020055,2]
[319505628,1710810633807,-264.09,0.0002018,2]
[319505629,1710810633816,-304.0,0.00020184,2]
[319505630,1710810633825,-150.71,0.00020187,2]
[319505631,1710810633835,-153.0,0.00020411,2]
[319505632,1710810633845,-366.87,0.00020477,2]
[319505633,1710810633855,-155.0,0.00020548,2]
[319505634,1710810633864,-564.11666661,0.000206,2]
[319505635,1710810633873,-1592.07,0.0002066,2]
[319505636,1710810633885,-171.24,0.00020717,2]
[319505637,1710810633895,-5208.8619,0.000208,2]
[319505638,1710810633904,-1991.9104,0.000208,2]
[319505639,1710810633913,-178.30962825,0.00020827,4]
[319505640,1710810633923,-351.3137702,0.00020827,2]
[319505641,1710810633933,-29390.9812662,0.000209,2]
[319505642,1710810633969,-199754.28334208,0.000209,2]
[319505643,1710810633981,-2812.22,0.000209,2]
[319505644,1710810634045,-1008.0,0.000209,2]
[319505645,1710810634057,-5347.314432,0.000209,2]
[319505646,1710810634077,-607.49998,0.000209,2]
[319505647,1710810634146,-2073.17459416,0.000209,2]
[319505678,1710810638583,-725.62826146,0.000209,2]
[319505683,1710810638636,-4778.51818744,0.000209,2]
[319505684,1710810638648,-118697.2105705,0.000209,2]
[319505685,1710810638657,-261.11607263,0.00020927,2]
[319505686,1710810638667,-229.38,0.00021096,2]
[319505687,1710810638677,-1000.0,0.00021166,2]
[319505688,1710810638686,-368.6978295,0.00021193,2]
[319505689,1710810638696,-184.91,0.00021462,2]
[319505690,1710810638705,-165.85,0.00021528,2]
[319505691,1710810638715,-153.0,0.00021644,2]
[319505692,1710810638725,-696.0,0.00021673,2]
[319505693,1710810638735,-9211.34504548,0.000218,5]
[319505694,1710810638763,-60778.18051695,0.000218,5]
[319505695,1710810638778,-10277.85012528,0.000218,5]
[319505696,1710810638793,-531.79482725,0.000218,5]
[319505697,1710810638806,-49526.69005989,0.000218,5]
[319505698,1710810638824,-15019.91512127,0.000218,5]
[319505699,1710810638837,-3021.6202589,0.000218,5]
[319505700,1710810638847,-150.0,0.00021918,2]
[319505701,1710810638856,-198.34,0.00021918,10]
[319505702,1710810638865,-250.0,0.00021918,2]
[319505703,1710810638875,-869.33538691,0.00022,2]
[319505704,1710810638885,-779.74941329,0.00022,2]
[319505705,1710810638894,-155.0,0.00022,2]
[319505707,1710810638904,-155.0,0.00022,2]
[319505708,1710810638913,-203.45609981,0.000223,2]
[319505710,1710810638923,-264.09,0.00022422,2]
[319505712,1710810638933,-304.0,0.00022427,2]
[319505714,1710810638943,-366.87,0.00022741,2]
[319505715,1710810638952,-153.0,0.00022876,2]
[319505717,1710810638962,-306.0676328,0.00023,2]
[319505718,1710810638971,-5352.08872355,0.00023,10]
[319505720,1710810638983,-1459.81772786,0.00023,10]
[319505721,1710810638994,-840.6144956,0.00023,10]
[319505722,1710810639010,-620.15941707,0.00023,10]
[319505723,1710810639024,-315.19030927,0.00023,10]
[319505724,1710810639036,-5015.52462071,0.00023,10]
[319505725,1710810639045,-1592.07,0.00023399,2]
[319505726,1710810639054,-894.85653514,0.0002354,2]
[319505727,1710810639070,-1024.23453079,0.0002354,2]
[319505728,1710810639080,-223.73529118,0.00024,2]
[319505729,1710810639089,-153.0,0.00024109,2]
[319505730,1710810639098,-150.0,0.0002411,2]
[319505731,1710810639108,-696.0,0.00024382,2]
[319505732,1710810639117,-373.78825423,0.00024555,2]
[319505733,1710810639129,-626.44174577,0.00024555,2]
[319505734,1710810639139,-198.34,0.00024658,10]
[319505735,1710810639148,-264.09,0.00024664,120]
[319505736,1710810639158,-304.0,0.00024669,2]
[319505737,1710810639168,-8915.83057621,0.00024681,2]
[319505738,1710810639180,-861.17634016,0.00024681,2]
[319505739,1710810639192,-1098.43310043,0.00024681,2]
[319505740,1710810639204,-1775.9,0.00024681,2]
[319505743,1710810640428,-32914.48376391,0.00024681,2]
[319505744,1710810640441,-607.205,0.00024681,2]
[319505745,1710810640500,-385.33,0.00024681,2]
[319505746,1710810640576,-895.680025,0.00024681,2]
[319505747,1710810640647,-12.96119429,0.00024681,2]
[319505748,1710810640657,-1000.23,0.00024692,2]
[319505749,1710810640666,-1132.75566212,0.00024976,2]
[319505750,1710810640783,-525.10853847,0.00024976,2]
[319505751,1710810640797,-342.13579941,0.00024976,2]
[319505752,1710810640806,-1336.00673319,0.00025,2]
[319505753,1710810640818,-1663.99326681,0.00025,2]
[319505754,1710810640829,-155.0,0.00025,2]
[319505755,1710810640838,-155.0,0.00025,2]
[319505756,1710810640848,-712.35173319,0.00025,10]
[319505784,1710810643548,-306.0704712,0.00025,10]
[319505785,1710810643558,-366.87,0.00025005,2]
[319505786,1710810643567,-721.53,0.00025121,2]
[319505787,1710810643576,-153.0,0.00025342,2]
[319505788,1710810643586,-747.37,0.00025432,2]
[319505789,1710810643597,-150.0,0.00025432,2]
[319505790,1710810643607,-414.96,0.00025432,2]
[319505791,1710810643617,-356.15,0.00025432,2]
[319505793,1710810643626,-150.0,0.00025432,2]
[319505794,1710810643636,-414.96,0.00025432,2]
[319505795,1710810643646,-150.0,0.00025432,2]
[319505796,1710810643656,-414.96,0.00025432,2]
[319505797,1710810643665,-150.0,0.00025432,2]
[319505798,1710810643674,-404.3,0.00025432,2]
[319505799,1710810643684,-150.0,0.00025436,2]
[319505800,1710810643693,-150.0,0.00025436,2]
[319505801,1710810643703,-150.0,0.00025436,2]
[319505802,1710810643713,-693.56,0.00025436,2]
[319505803,1710810643726,-342.67,0.00025436,2]
[319505804,1710810643736,-367.66,0.00025436,2]
[319505805,1710810643746,-150.0,0.00025436,2]
[319505806,1710810643755,-150.0,0.00025436,2]
[319505807,1710810643766,-150.0,0.00025436,2]
[319505808,1710810643781,-150.0,0.00025436,2]
[319505809,1710810643790,-300.69,0.00025436,2]
[319505810,1710810643801,-150.0,0.00025436,2]
[319505811,1710810643812,-150.0,0.00025436,2]
[319505812,1710810643823,-150.0,0.00025436,2]
[319505813,1710810643834,-150.0,0.00025436,2]
[319505814,1710810643844,-150.0,0.00025436,2]
[319505815,1710810643854,-180.13,0.00025719,2]
[319505816,1710810643864,-637.0,0.000258,3]
[319505817,1710810643874,-150.0,0.00026301,2]
[319505818,1710810643884,-740.0,0.00026372,2]
[319505819,1710810643893,-153.0,0.00026575,2]
[319505820,1710810643902,-152.41830901,0.00026584,2]
[319505821,1710810643912,-177.0,0.00026892,120]
[319505822,1710810643921,-264.09,0.00026907,120]
[319505823,1710810643930,-304.0,0.00026912,2]
[319505824,1710810643940,-304.78945598,0.00027091,2]
[319505825,1710810643952,-294.29449932,0.00027091,2]
[319505826,1710810643984,-96.9160447,0.00027091,2]
[319505827,1710810643994,-231.90185224,0.00027145,2]
[319505828,1710810644004,-150.49823158,0.00027241,2]
[319505829,1710810644014,-366.87,0.00027268,2]
[319505830,1710810644026,-198.34,0.00027397,10]
[319505831,1710810644037,-152.29531727,0.00027612,2]
[319505832,1710810644046,-300.0,0.000277,5]
[319505833,1710810644056,-178.29,0.000277,2]
[319505834,1710810644075,-153.0,0.00027808,2]
[319505835,1710810644087,-400.99259794,0.00027945,2]
[319505843,1710810644357,-599.00740206,0.00027945,2]
[319505844,1710810644367,-151.20983331,0.00027965,2]
[319505845,1710810644377,-5052.7853014,0.00028,2]
[319505846,1710810644415,-1338.74,0.00028,2]
[319505847,1710810644428,-432.16,0.00028,2]
[319505848,1710810644450,-193.54548983,0.00028,2]
[319505849,1710810644460,-147.55318596,0.00028,2]
[319505850,1710810644471,-1414.2759767,0.00028,2]
[319505851,1710810644492,-299.15,0.00028,2]
[319505871,1710810646441,-277.24295605,0.000208,2]
[319505872,1710810646513,-571.10374395,0.000208,2]
[319505873,1710810646528,-155.0,0.00024999,2]
[319505874,1710810646537,-155.0,0.00024999,2]
[319505875,1710810646546,-360.38231079,0.00027999,2]
[319505876,1710810646556,-1139.02083734,0.00028,2]
[319505877,1710810646565,-178.29,0.00028248,2]
[319505878,1710810646574,-150.0,0.00028493,2]
[319505879,1710810646584,-423.18870272,0.0002868,2]
[319505880,1710810646594,-213.7644052,0.0002868,2]
[319505881,1710810646843,-209.42429752,0.0002868,2]
[319505882,1710810646853,-423.18870272,0.0002868,2]
[319505883,1710810646862,-131.32340124,0.000287,7]
[319505884,1710810646874,-19.67659876,0.000287,7]
[319505885,1710810646884,-1565.64588291,0.0002878,2]
[319505886,1710810646896,-650.0,0.0002878,2]
[319505887,1710810646912,-835.2218875,0.0002878,2]
[319505888,1710810646923,-4527.4790128,0.0002878,2]
[319505889,1710810646933,-151.15077774,0.0002878,2]
[319505890,1710810646944,-178.29,0.00028796,2]
[319505891,1710810646954,-559.38958846,0.00028878,2]
[319505892,1710810646963,-269.9436332,0.00028878,2]
[319505893,1710810646973,-414.15339656,0.00028878,2]
[319505894,1710810646982,-775.74900842,0.00028878,2]
[319505895,1710810646992,-1883.28731315,0.00028878,2]
[319505896,1710810647001,-2185.76335428,0.00028878,2]
[319505897,1710810647011,-206.10677387,0.00028879,2]
[319505898,1710810647020,-150.01,0.00028879,2]
[319505899,1710810647033,-5003.12754987,0.00028879,2]
[319505900,1710810647043,-22429.02109365,0.0002888,2]
[319505901,1710810647063,-346.99895787,0.0002888,2]
[319505902,1710810647087,-589.9900002,0.0002888,2]
[319505903,1710810647098,-373.10695705,0.0002888,2]
[319505912,1710811541252,-440.69724842,0.00013999,2]
[319505913,1710811541274,-579.0,0.00014,2]
[319505914,1710811541295,-683.83992134,0.0001527,2]
[319505915,1710811541317,-157.5186961,0.000169,2]
[319505916,1710811541338,-313.58469435,0.00017,3]
[319505918,1710811631147,-436.41530565,0.00017,3]
[319505919,1710811631167,-321.72947893,0.00017,2]
[319505920,1710811631188,-22.59568322,0.00018647,2]
[319505921,1710811641107,-134.92301284,0.00018647,2]
[319505922,1710811641130,-449.55468468,0.00019169,2]
[319505923,1710811641150,-1000.0,0.00019438,2]
[319505924,1710811641172,-2594.33596738,0.00019999,2]
[319505952,1710811832090,-277.05147729,0.0001577,2]
[319505953,1710811832101,-559.64265775,0.00015771,2]
[319505954,1710811832111,-400.0,0.00015772,2]
[319505955,1710811832120,-270.02185267,0.00015773,2]
[319505956,1710811832133,-3359.13045759,0.00015773,2]
[319505957,1710811832143,-160.30169063,0.00015774,2]
[319505958,1710811832157,-3061.63196009,0.00015774,2]
[319505959,1710811832173,-6240.27115443,0.00015776,5]
[319505960,1710811832231,-936.75035845,0.00015776,5]
[319505961,1710811832241,-176.96,0.0001578,2]
[319505962,1710811832251,-300.0,0.00016996,2]
[319505963,1710811832262,-232.32935129,0.00017,2]
[319505964,1710811832277,-89.26966018,0.00017,2]
[319505965,1710811832288,-372.67,0.00017794,2]
[319505966,1710811832299,-84.66745002,0.00017794,2]
[319505967,1710811832312,-66.32254998,0.00017794,2]
[319505968,1710811832322,-186.33312642,0.00017794,2]
[319505969,1710811832359,-264.38687358,0.00017794,2]
[319505970,1710811832369,-200.0,0.00019192,2]
[319505971,1710811832384,-5000.0,0.00019279,2]
[319505972,1710811832395,-192.38747769,0.00019554,2]
[319505973,1710811832405,-518.71289967,0.00019554,2]
[319505974,1710811832416,-2870.22327911,0.00019555,2]
[319505975,1710811832450,-955.00000001,0.00019555,2]
[319505976,1710811832462,-1712.1632,0.00019555,2]